bitfinex/quotes_ETHUSD_20251010
["timestamp","ask_amount","ask_price","bid_price","bid_amount"]
[1760085477290,0.0004,4336.4,4336.3,4.15154309]
[1760085477874,0.0004,4336.4,4336.3,6.45765659]
[1760085478122,0.0004,4336.4,4336.3,7.88836221]
[1760085478915,0.0004,4336.4,4336.3,7.53756221]
[1760085479729,0.0004,4336.4,4336.3,5.23144871]
[1760085480025,0.0004,4336.4,4336.3,4.15154309]
[1760085480893,0.0004,4336.4,4335.8,0.001]
[1760085480894,0.4573,4336.4,4335.8,0.001]
[1760085481208,0.02882641,4336.3,4335.8,0.001]
[1760085481616,0.4569,4336.2,4335.8,0.001]
[1760085481791,0.02882774,4336.1,4335.8,0.001]
[1760085482333,2.76237306,4336.0,4335.8,0.001]
[1760085482822,2.30632625,4335.9,4335.8,0.001]
[1760085483201,2.79205532,4335.9,4335.8,0.001]
[1760085483517,0.4569,4335.9,4335.8,0.001]
[1760085484902,0.1152,4336.0,4335.8,0.001]
[1760085485110,0.1152,4336.0,4335.8,0.66250351]
[1760085485422,0.1152,4336.0,4335.8,0.64832045]
[1760085485788,0.1152,4336.0,4335.9,2.30632625]
[1760085486019,0.1152,4336.0,4335.9,2.32050848]
[1760085486223,0.0004,4336.4,4335.9,2.32050848]
[1760085486540,0.1156,4336.4,4336.3,2.3061135]
[1760085486738,0.0004,4336.4,4336.3,2.32029041]
[1760085486889,0.0004,4336.4,4336.3,2.67109041]
[1760085489217,0.0004,4336.4,4336.3,2.6569135]
[1760085489660,0.0004,4336.4,4336.3,4.70629041]
[1760085489803,0.0004,4336.4,4336.3,5.89287042]
[1760085491097,0.0004,4336.4,4336.3,5.98525845]
[1760085491719,0.0004,4336.4,4336.3,5.63445845]
[1760085492336,0.0004,4336.4,4336.3,5.98525845]
[1760085492831,0.0004,4336.4,4336.3,5.89287042]
[1760085495543,0.0004,4336.4,4336.3,10.77740851]
[1760085497052,0.0004,4336.4,4336.3,10.86979718]
[1760085503137,0.0012,4336.6,4336.5,2.30600714]
[1760085503433,0.0012,4336.6,4336.5,3.82976182]
[1760085503640,0.0012,4336.6,4336.5,6.10056182]
[1760085503841,0.002,4336.9,4336.5,6.10056182]
[1760085503842,0.002,4336.9,4336.8,2.30584762]
[1760085504062,0.002,4336.9,4336.8,9.12455597]
[1760085504229,0.0012,4336.9,4336.8,9.46118571]
[1760085504431,0.0012,4336.9,4336.8,10.79809249]
[1760085505658,0.0012,4336.9,4336.8,10.89046942]
[1760085509053,0.002,4337.3,4337.0,2.30574129]
[1760085509252,0.002,4338.5,4337.5,1.92]
[1760085509462,0.002,4338.5,4337.0,2.30574129]
[1760085509463,0.002,4338.5,4337.8,9.10985414]
[1760085509772,0.002,4338.5,4337.8,10.02225547]
[1760085509980,0.002,4338.5,4337.8,10.37305547]
[1760085510681,0.002,4338.5,4338.0,2.30520977]
[1760085510881,0.002,4338.5,4338.0,4.23936409]
[1760085511050,0.002,4338.5,4338.4,2.30499723]
[1760085511383,0.002,4338.5,4338.4,9.9686914]
[1760085511693,0.002,4338.5,4338.4,10.39769033]
[1760085513243,0.002,4338.5,4338.4,10.51289033]
[1760085516075,0.002,4338.5,4338.4,10.16209033]
[1760085516866,0.002,4338.5,4338.4,9.31708325]
[1760085517406,0.002,4338.5,4338.4,9.22473532]
[1760085519427,0.002,4338.5,4338.4,6.91973809]
[1760085519592,0.002,4338.5,4338.4,0.1152]
[1760085519783,0.002,4338.5,4337.7,4.88453809]
[1760085519784,0.4404,4338.5,4338.0,2.42039829]
[1760085519985,0.4384,4338.4,4338.0,2.42039829]
[1760085520609,0.4384,4338.3,4338.0,2.42039829]
[1760085520979,0.002,4338.5,4338.0,2.42039829]
[1760085521181,0.4384,4338.4,4338.0,2.42039829]
[1760085521580,0.4384,4338.4,4338.1,2.30515003]
[1760085522300,0.4384,4338.4,4338.1,2.30515663]
[1760085522608,0.002,4338.5,4338.0,0.1152]
[1760085522909,0.4404,4338.5,4338.0,0.1152]
[1760085523211,0.4384,4338.4,4338.0,0.1152]
[1760085523412,0.002,4338.5,4338.0,0.1152]
[1760085523583,0.002,4338.5,4338.1,2.30515663]
[1760085524414,0.4404,4338.5,4338.1,2.30515663]
[1760085524620,0.4404,4338.5,4338.2,2.30509363]
[1760085524826,0.4404,4338.5,4338.0,2.42036897]
[1760085525130,0.4404,4338.5,4338.1,2.30511567]
[1760085525717,0.4404,4338.5,4338.2,2.30509777]
[1760085525904,0.002,4338.5,4338.3,2.30500558]
[1760085526106,0.002,4338.5,4338.4,2.30499723]
[1760085526419,0.0012,4338.5,4338.3,2.3050389]
[1760085527930,0.0012,4338.5,4338.0,0.1152]
[1760085527931,0.0012,4338.5,4338.2,2.30509419]
[1760085529630,0.0012,4338.5,4338.1,2.30515625]
[1760085529808,0.471,4338.5,4338.2,2.3050986]
[1760085530205,0.0012,4338.5,4338.2,2.3050986]
[1760085530535,0.0012,4338.5,4338.4,7.18953532]
[1760085531133,0.0012,4338.5,4338.4,7.54033532]
[1760085531907,0.0012,4338.5,4338.4,7.65553532]
[1760085532330,0.0012,4338.5,4338.4,7.54033532]
[1760085535598,0.0012,4338.5,4338.4,7.18953532]
[1760085535950,0.0012,4338.5,4338.4,2.30499723]
[1760085536449,0.0012,4338.5,4338.4,7.55448432]
[1760085536614,0.0012,4338.5,4338.4,7.54033532]
[1760085542158,0.0012,4338.5,4338.4,7.63268453]
[1760085542375,0.0012,4338.5,4338.4,9.66788453]
[1760085542520,0.01,4338.9,4338.8,2.30478473]
[1760085542853,0.01,4338.9,4338.8,9.12346651]
[1760085543058,0.01,4338.9,4338.8,9.10932282]
[1760085543357,0.01,4338.9,4338.8,4.33998473]
[1760085543716,0.01,4338.9,4338.8,4.43233458]
[1760085544026,0.01,4338.9,4338.8,9.33101636]
[1760085544228,0.01,4338.9,4338.8,10.83126284]
[1760085545229,0.01,4338.9,4338.8,9.31687267]
[1760085545909,0.01,4338.9,4338.8,9.66767267]
[1760085546950,0.01,4338.9,4337.8,0.3508]
[1760085547117,0.01,4338.9,4338.2,2.30509913]
[1760085547452,0.4698,4338.8,4338.2,0.1152]
[1760085547649,0.02881047,4338.7,4338.1,0.001]
[1760085547820,0.1152,4338.3,4338.1,0.001]
[1760085548356,0.469,4338.2,4338.1,0.001]
[1760085550154,0.1152,4338.3,4338.1,0.001]
[1760085550752,0.585,4338.3,4338.1,0.001]
[1760085550932,0.4698,4338.2,4338.1,0.001]
[1760085551758,2.77490349,4338.2,4338.1,0.001]
[1760085552055,2.80371728,4338.2,4338.1,0.001]
[1760085552251,3.43731728,4338.2,4338.1,0.001]
[1760085553458,3.40850349,4338.2,4338.1,0.001]
[1760085553638,5.35731728,4338.2,4338.1,0.001]
[1760085553853,5.32850349,4338.2,4338.1,0.001]
[1760085554269,5.82497678,4338.2,4338.1,0.001]
[1760085555527,14.12938142,4338.2,4338.1,0.001]
[1760085557730,14.22180275,4338.2,4338.1,0.001]
[1760085558272,10.06960043,4338.2,4338.1,0.001]
[1760085558463,9.57312714,4338.2,4338.1,0.001]
[1760085559581,0.56222133,4338.2,4338.1,0.001]
[1760085559890,2.77490349,4338.2,4338.1,0.001]
[1760085560035,2.80371728,4338.2,4338.1,0.001]
[1760085562574,2.77490349,4338.2,4338.1,0.001]
[1760085564077,0.4698,4338.2,4338.1,0.001]
[1760085565375,2.77490349,4338.2,4338.1,0.001]
[1760085567176,6.92710581,4338.2,4338.1,0.001]
[1760085568155,2.77490349,4338.2,4338.1,0.001]
[1760085568576,0.4698,4338.2,4338.1,0.001]
[1760085569103,2.77490349,4338.2,4338.1,0.001]
[1760085570466,2.77410349,4338.2,4338.1,0.001]
[1760085570776,2.77610349,4338.2,4338.1,0.001]
[1760085572263,2.80491728,4338.2,4338.1,0.001]
[1760085572470,0.471,4338.2,4338.1,0.001]
[1760085572987,2.80491728,4338.2,4338.1,0.001]
[1760085573168,0.49981379,4338.2,4338.1,0.001]
[1760085573569,0.471,4338.2,4338.1,0.001]
[1760085574010,0.002,4338.2,4338.1,0.001]
[1760085575180,0.002,4338.2,4338.1,0.23314471]
[1760085577996,0.002,4338.2,4338.1,0.001]
[1760085578300,0.4338,4338.2,4338.1,0.001]
[1760085578819,2.73890349,4338.2,4338.1,0.001]
[1760085579519,6.9199196,4338.2,4338.1,0.001]
[1760085579818,6.89110581,4338.2,4338.1,0.001]
[1760085580349,2.73890349,4338.2,4338.1,0.001]
[1760085581426,2.76771728,4338.2,4338.1,0.001]
[1760085582793,6.9199196,4338.2,4338.1,0.001]
[1760085582995,7.52470581,4338.2,4338.1,0.001]
[1760085583211,13.59690813,4338.2,4338.1,0.001]
[1760085583387,14.09344289,4338.2,4338.1,0.001]
[1760085584311,14.18585717,4338.2,4338.1,0.001]
[1760085585540,5.88145253,4338.2,4338.1,0.001]
[1760085585705,6.50338778,4338.2,4338.1,0.001]
[1760085587415,5.88145253,4338.2,4338.1,0.001]
[1760085590799,5.78903825,4338.2,4338.1,0.001]
[1760085590997,2.73890349,4338.2,4338.1,0.001]
[1760085592499,2.73810349,4338.2,4338.1,0.001]
[1760085594636,0.433,4338.2,4338.1,0.001]
[1760085594841,2.73810349,4338.2,4338.1,0.001]
[1760085595634,2.76691728,4338.2,4338.1,0.001]
[1760085596503,0.433,4338.2,4338.1,0.001]
[1760085597035,2.73810349,4338.2,4338.1,0.001]
[1760085601156,2.76691728,4338.2,4338.1,0.001]
[1760085602222,2.73810349,4338.2,4338.1,0.001]
[1760085602959,0.0012,4338.2,4338.1,0.001]
[1760085603526,0.0012,4338.2,4338.1,0.24728919]
[1760085604654,0.0012,4338.2,4338.1,0.2331362]
[1760085604982,0.0012,4338.2,4338.1,0.001]
[1760085605623,0.0012,4338.2,4338.1,2.32030962]
[1760085609145,0.0012,4338.2,4338.1,2.77180962]
[1760085611563,0.0012,4338.2,4338.1,2.75765663]
[1760085611760,0.0012,4338.2,4338.1,0.001]
[1760085612126,2.74550349,4338.2,4338.1,0.001]
[1760085612529,2.77431728,4338.2,4338.1,0.001]
[1760085612724,2.74550349,4338.2,4338.1,0.001]
[1760085613169,2.77431728,4338.2,4338.1,0.001]
[1760085613956,2.74550349,4338.2,4338.1,0.001]
[1760085614564,2.74470349,4338.2,4338.1,0.001]
[1760085615381,2.77351728,4338.2,4338.1,0.001]
[1760085615586,0.4396,4338.2,4338.1,0.001]
[1760085615940,2.74470349,4338.2,4338.1,0.001]
[1760085616786,2.77351728,4338.2,4338.1,0.001]
[1760085618767,2.74470349,4338.2,4338.1,0.001]
[1760085619586,0.4396,4338.2,4338.1,0.001]
[1760085620577,2.74470349,4338.2,4338.1,0.001]
[1760085627405,7.62997663,4338.2,4338.1,0.001]
[1760085628166,2.74470349,4338.2,4338.1,0.001]
[1760085628369,2.77351728,4338.2,4338.1,0.001]
[1760085630309,8.26357663,4338.2,4338.1,0.001]
[1760085630611,10.68062993,4338.2,4338.1,0.001]
[1760085630992,5.79535679,4338.2,4338.1,0.001]
[1760085631416,0.4396,4338.2,4338.1,0.001]
[1760085632944,2.74470349,4338.2,4338.1,0.001]
[1760085633806,2.77351728,4338.2,4338.1,0.001]
[1760085636522,5.32711728,4338.2,4338.1,0.001]
[1760085636727,5.7944504,4338.2,4338.1,0.001]
[1760085640610,5.7964504,4338.2,4338.1,0.001]
[1760085642830,2.93902235,4337.6,4337.5,0.001]
[1760085643124,2.30558181,4337.3,4335.1,2.33090852]
[1760085643283,4.88800158,4337.3,4335.1,0.01]
[1760085643484,5.80182872,4337.3,4335.5,2.30752772]
[1760085643694,5.80182872,4337.3,4335.6,2.32061474]
[1760085644491,5.80182872,4337.3,4335.6,0.01417018]
[1760085644691,5.80182872,4337.3,4335.6,1e-08]
[1760085645482,5.80182872,4337.3,4335.6,0.01417476]
[1760085646031,5.80182872,4337.3,4335.6,2.32065474]
[1760085646234,5.30488181,4337.3,4335.6,2.32065474]
[1760085646530,5.30488181,4337.3,4335.8,2.30734698]
[1760085646919,5.30488181,4337.3,4335.8,0.001]
[1760085649529,4.67128181,4337.3,4335.8,0.001]
[1760085650531,4.67128181,4337.3,4335.9,2.30632181]
[1760085650693,4.67128181,4337.3,4336.2,0.01416821]
[1760085651331,4.67128181,4337.3,4336.1,0.01]
[1760085652145,4.67128181,4337.3,4336.2,0.01416821]
[1760085652739,4.67128181,4337.3,4336.1,0.01]
[1760085653250,5.30488181,4337.3,4336.1,0.01]
[1760085653547,5.80124618,4337.3,4336.1,0.01]
[1760085657852,5.80124618,4337.3,4337.1,0.001]
[1760085658739,5.80044618,4337.3,4337.1,0.001]
[1760085659660,10.68881629,4337.3,4337.1,0.001]
[1760085660357,0.6336,4336.9,4336.3,0.001]
[1760085660518,2.30577245,4337.0,4336.3,0.001]
[1760085660519,7.44197011,4336.4,4336.3,0.001]
[1760085660855,9.74803043,4336.4,4336.3,0.001]
[1760085661158,4.66386032,4336.4,4336.3,0.001]
[1760085661326,4.69268607,4336.4,4336.3,0.001]
[1760085661528,5.15097444,4336.4,4336.3,0.001]
[1760085661740,5.12214869,4336.4,4336.3,0.001]
[1760085662025,8.7241188,4336.4,4336.3,0.001]
[1760085662224,8.7241188,4336.4,4336.1,0.01]
[1760085662225,4.85976668,4336.2,4336.1,1e-08]
[1760085662450,4.85976668,4336.2,4334.1,0.01]
[1760085662451,2.94003264,4335.7,4334.1,0.01]
[1760085662624,2.5536,4335.6,4334.1,0.01]
[1760085662830,4.88837011,4335.2,4334.1,0.01]
[1760085663164,7.19506876,4335.2,4334.1,0.01]
[1760085663561,0.4378,4335.2,4334.1,0.01]
[1760085663861,2.74449865,4335.2,4334.1,0.01]
[1760085664158,0.46663373,4335.2,4334.1,0.01]
[1760085664369,0.4378,4335.2,4334.3,2.30714844]
[1760085664669,2.74449865,4335.2,4334.4,0.01419516]
[1760085664846,0.4378,4335.2,4334.1,0.01]
[1760085665043,2.74449865,4335.2,4334.1,0.01]
[1760085665374,0.46663373,4335.2,4334.1,0.01]
[1760085665672,0.46663373,4335.2,4334.5,2.30706846]
[1760085665673,0.4378,4335.2,4334.5,2.30706846]
[1760085665860,0.4378,4335.2,4334.3,2.32132239]
[1760085666165,0.4378,4335.2,4334.6,2.30700132]
[1760085666668,0.4378,4335.2,4334.3,0.01419549]
[1760085666975,0.26122974,4335.8,4334.4,2.30707934]
[1760085667174,0.4378,4335.2,4334.7,2.30691287]
[1760085667643,0.4378,4335.2,4334.1,0.1343]
[1760085667644,0.4378,4335.2,4334.2,0.3578]
[1760085667849,0.4378,4335.2,4334.3,0.01419549]
[1760085668049,0.4378,4335.2,4334.9,2.30685003]
[1760085668251,2.3064375,4335.7,4334.9,2.30685003]
[1760085668252,0.4378,4335.5,4334.9,2.30685003]
[1760085668668,0.2324,4335.8,4335.0,0.01419169]
[1760085668873,0.2324,4335.8,4334.1,0.1343]
[1760085668874,0.4378,4335.9,4335.2,2.30667635]
[1760085669470,0.4378,4335.9,4335.3,2.32080194]
[1760085670373,0.4378,4335.9,4335.3,0.0141882]
[1760085670741,0.4378,4335.9,4335.2,0.47795802]
[1760085670937,0.02882974,4335.8,4335.2,0.46376982]
[1760085671163,0.02882974,4335.8,4335.2,2.30667728]
[1760085671478,0.4378,4335.7,4335.2,2.30667728]
[1760085671638,0.4378,4335.6,4335.2,2.30667728]
[1760085671837,0.4378,4335.6,4335.1,2.31674317]
[1760085672051,0.4378,4335.5,4335.1,2.31674317]
[1760085672348,0.1152,4335.6,4335.1,2.31674317]
[1760085672349,0.4378,4335.4,4335.1,2.31674317]
[1760085672963,0.4378,4335.4,4335.2,2.30668661]
[1760085673772,0.1152,4335.6,4335.2,2.30668661]
[1760085673956,0.1152,4335.6,4335.4,2.30658919]
[1760085674948,0.1152,4335.6,4335.2,2.3066496]
[1760085675153,0.553,4335.6,4335.3,0.01418971]
[1760085675351,0.4378,4335.5,4335.2,0.46375944]
[1760085675564,0.4378,4335.5,4335.1,0.01]
[1760085675765,0.1152,4335.6,4335.1,2.31674037]
[1760085676086,0.1152,4335.6,4335.3,2.30659784]
[1760085676265,0.1152,4335.6,4335.1,2.31670044]
[1760085676453,0.1152,4335.6,4335.2,0.01419053]
[1760085676656,0.553,4335.6,4335.2,2.32088201]
[1760085676855,0.4378,4335.5,4335.2,0.01419053]
[1760085677055,0.4378,4335.5,4335.2,2.32088302]
[1760085677481,0.4378,4335.5,4335.3,2.30663326]
[1760085678482,0.4378,4335.5,4335.2,2.30669407]
[1760085678888,0.4378,4335.5,4335.3,2.30662771]
[1760085679491,0.4378,4335.5,4335.2,4.22665305]
[1760085679873,0.4378,4335.5,4335.2,2.30665305]
[1760085680074,0.4378,4335.5,4335.1,2.3177459]
[1760085680481,0.4378,4335.5,4335.1,0.011]
[1760085680684,0.4378,4335.5,4335.2,2.30665725]
[1760085680874,0.437,4335.5,4335.1,0.011]
[1760085681074,0.437,4335.5,4335.2,2.30665393]
[1760085681801,0.1172,4335.6,4335.3,0.01419021]
[1760085682002,0.1172,4335.6,4335.3,2.32079606]
[1760085682368,0.1172,4335.6,4335.3,0.01419021]
[1760085682563,0.1172,4335.6,4335.3,0.0141892]
[1760085682814,0.1172,4335.6,4335.4,2.30654648]
[1760085682990,0.1172,4335.6,4335.5,0.01418805]
[1760085683805,0.1172,4335.6,4335.5,2.32072708]
[1760085684005,0.1172,4335.6,4335.1,0.011]
[1760085684006,0.555,4335.6,4335.1,0.011]
[1760085684180,0.4378,4335.5,4335.1,0.011]
[1760085684507,0.0288324,4335.4,4335.1,0.011]
[1760085684703,0.4378,4335.3,4335.1,0.011]
[1760085684906,0.0288324,4335.4,4335.1,0.011]
[1760085685208,0.4378,4335.2,4335.1,0.011]
[1760085687701,0.0288324,4335.4,4335.1,0.011]
[1760085688007,0.4716,4335.3,4335.1,0.011]
[1760085688207,0.50043373,4335.2,4335.1,0.011]
[1760085689306,0.4716,4335.2,4335.1,0.011]
[1760085690393,0.002,4335.6,4335.1,0.011]
[1760085690394,0.4716,4335.5,4335.1,0.011]
[1760085690731,0.4716,4335.4,4335.1,0.011]
[1760085690927,0.4716,4335.3,4335.1,0.011]
[1760085691228,0.4716,4335.2,4335.1,0.011]
[1760085695817,0.50043373,4335.2,4335.1,0.011]
[1760085696939,0.4716,4335.2,4335.1,0.011]
[1760085697825,0.50043373,4335.2,4335.1,0.011]
[1760085698435,2.80713238,4335.2,4335.1,0.011]
[1760085701840,0.50043373,4335.2,4335.1,0.011]
[1760085703613,2.80633238,4335.2,4335.1,0.011]
[1760085707447,6.96320819,4335.2,4335.1,0.011]
[1760085707651,6.93437446,4335.2,4335.1,0.011]
[1760085708321,6.93437446,4335.2,4334.6,0.001]
[1760085708322,0.6336,4335.1,4334.6,0.001]
[1760085708527,7.09744053,4334.7,4334.6,0.001]
[1760085708926,7.56594053,4334.7,4334.6,0.001]
[1760085710648,3.40906472,4334.7,4334.6,0.001]
[1760085710944,7.56594053,4334.7,4334.6,0.001]
[1760085711927,14.13995434,4334.7,4334.6,0.001]
[1760085712132,9.98307853,4334.7,4334.6,0.001]
[1760085714651,14.13995434,4334.7,4334.6,0.001]
[1760085714821,9.98307853,4334.7,4334.6,0.001]
[1760085716047,14.13995434,4334.7,4334.6,0.001]
[1760085716349,14.13995434,4334.7,4334.1,0.011]
[1760085716350,0.6336,4334.5,4334.1,1e-08]
[1760085716649,9.01770667,4334.2,4334.1,1e-08]
[1760085716813,9.51484467,4334.2,4334.1,1e-08]
[1760085717015,9.98374467,4334.2,4334.1,1e-08]
[1760085717230,9.48660667,4334.2,4334.1,1e-08]
[1760085718748,9.95232521,4334.2,4334.1,1e-08]
[1760085718960,10.44849572,4334.2,4334.1,1e-08]
[1760085719312,14.60537153,4334.2,4334.1,1e-08]
[1760085720821,10.44849572,4334.2,4334.1,1e-08]
[1760085721053,6.29161991,4334.2,4334.1,1e-08]
[1760085721240,9.95232521,4334.2,4334.1,1e-08]
[1760085721755,14.10920102,4334.2,4334.1,1e-08]
[1760085722150,9.95232521,4334.2,4334.1,1e-08]
[1760085724136,14.10920102,4334.2,4334.1,1e-08]
[1760085725024,9.95152521,4334.2,4334.1,1e-08]
[1760085729654,5.1610494,4334.2,4334.1,1e-08]
[1760085735278,3.2410494,4334.2,4334.1,1e-08]
[1760085737254,2.30721809,4334.3,4334.1,1e-08]
[1760085737755,0.4689,4334.2,4334.1,1e-08]
[1760085738155,2.77613086,4334.2,4334.1,1e-08]
[1760085738740,0.4689,4334.2,4334.1,1e-08]
[1760085739081,2.77613086,4334.2,4334.1,1e-08]
[1760085739676,4.69613086,4334.2,4334.1,1e-08]
[1760085739990,5.82749176,4334.2,4334.1,1e-08]
[1760085741391,6.29856233,4334.2,4334.1,1e-08]
[1760085747482,6.91985333,4334.2,4334.1,1e-08]
[1760085747679,6.29856233,4334.2,4334.1,1e-08]
[1760085751267,6.29776233,4334.2,4334.1,1e-08]
[1760085751793,6.29976233,4334.2,4334.1,1e-08]
[1760085754600,5.66616233,4334.2,4334.1,1e-08]
[1760085754986,6.29976233,4334.2,4334.1,1e-08]
[1760085755684,5.66616233,4334.2,4334.1,1e-08]
[1760085755995,6.29976233,4334.2,4334.1,1e-08]
[1760085759280,5.66616233,4334.2,4334.1,1e-08]
[1760085759462,5.80200143,4334.2,4334.1,1e-08]
[1760085759668,6.29989547,4334.2,4334.1,1e-08]
[1760085763302,6.9222149,4334.2,4334.1,1e-08]
[1760085763480,6.29989547,4334.2,4334.1,1e-08]
[1760085767003,5.66629547,4334.2,4334.1,1e-08]
[1760085767209,5.66627382,4334.2,4334.1,1e-08]
[1760085769324,5.66547382,4334.2,4334.1,1e-08]
[1760085773712,5.66547382,4334.2,4334.1,0.27453201]
[1760085774426,1.43824296,4334.2,4334.1,0.27453201]
[1760085774632,3.24760143,4334.2,4334.1,0.27453201]
[1760085774832,3.7743142,4334.2,4334.1,0.27453201]
[1760085775511,3.27644181,4334.2,4334.1,0.27453201]
[1760085778520,3.77445841,4334.2,4334.1,0.27453201]
[1760085780251,6.32805841,4334.2,4334.1,0.27453201]
[1760085780421,6.29921803,4334.2,4334.1,0.27453201]
[1760085780744,6.92155852,4334.2,4334.1,0.27453201]
[1760085780910,0.6336,4333.7,4333.6,0.001]
[1760085781109,7.44725732,4333.7,4333.6,0.001]
[1760085781343,8.41614988,4333.7,4333.6,0.001]
[1760085782148,10.72364693,4333.7,4333.6,0.001]
[1760085782458,5.82998961,4333.7,4333.6,0.001]
[1760085787757,10.72364693,4333.7,4333.6,0.001]
[1760085788151,11.32364693,4333.7,4333.6,0.001]
[1760085789664,6.42998961,4333.7,4333.6,0.001]
[1760085791239,6.42918961,4333.7,4333.6,0.001]
[1760085791962,5.79638961,4333.7,4333.6,0.001]
[1760085792126,2.9908,4333.7,4333.6,0.001]
[1760085792329,5.29829705,4333.7,4333.6,0.001]
[1760085801075,3.37829705,4333.7,4333.6,0.001]
[1760085801379,3.40714076,4333.7,4333.6,0.001]
[1760085804747,1.09964371,4333.7,4333.6,0.001]
[1760085805050,3.40714076,4333.7,4333.6,0.001]
[1760085807778,2.80714076,4333.7,4333.6,0.001]
[1760085808277,2.80914076,4333.7,4333.6,0.001]
[1760085808646,0.4728,4333.7,4333.6,0.001]
[1760085808859,2.78029705,4333.7,4333.6,0.001]
[1760085809072,2.80914076,4333.7,4333.6,0.001]
[1760085809788,0.4473,4333.7,4333.6,0.001]
[1760085810080,0.47614371,4333.7,4333.6,0.001]
[1760085810659,2.78364076,4333.7,4333.6,0.001]
[1760085812981,0.4473,4333.7,4333.6,0.001]
[1760085813351,0.47534371,4333.7,4333.6,0.001]
[1760085813553,2.78284076,4333.7,4333.6,0.001]
[1760085814582,2.75399705,4333.7,4333.6,0.001]
[1760085816492,0.4465,4333.7,4333.6,0.001]
[1760085816865,2.75399705,4333.7,4333.6,0.001]
[1760085817492,2.78284076,4333.7,4333.6,0.001]
[1760085818578,3.28113564,4333.7,4333.6,0.001]
[1760085819088,3.91473564,4333.7,4333.6,0.001]
[1760085819887,3.28113564,4333.7,4333.6,0.001]
[1760085820095,3.25229193,4333.7,4333.6,0.001]
[1760085820394,3.28113564,4333.7,4333.6,0.001]
[1760085820590,2.75399705,4333.7,4333.6,0.001]
[1760085821013,2.78284076,4333.7,4333.6,0.001]
[1760085822473,0.47534371,4333.7,4333.6,0.001]
[1760085822895,2.75399705,4333.7,4333.6,0.001]
[1760085823115,0.4465,4333.7,4333.6,0.001]
[1760085825701,0.0012,4333.7,4333.6,0.001]
[1760085825910,0.0012,4333.7,4333.6,0.64771395]
[1760085826092,0.0012,4333.7,4333.6,2.95526425]
[1760085826494,0.0012,4333.7,4333.6,0.64771395]
[1760085826821,0.0012,4333.7,4333.6,2.68376313]
[1760085827329,0.0012,4333.7,4333.6,6.84231735]
[1760085827481,0.0012,4333.7,4333.6,6.82810452]
[1760085827677,0.0012,4333.7,4333.6,6.46710452]
[1760085827880,0.0012,4333.7,4333.6,2.3085503]
[1760085828116,0.0012,4333.7,4333.6,3.2363385]
[1760085828778,0.0012,4333.7,4333.6,3.22212567]
[1760085828984,0.0012,4333.7,4333.6,3.58312567]
[1760085829184,0.0012,4333.7,4333.6,3.22212567]
[1760085830096,0.0012,4333.7,4333.6,3.5973385]
[1760085831320,0.0012,4333.7,4333.6,5.5173385]
[1760085831531,0.0012,4333.7,4333.6,5.50312567]
[1760085834020,0.0012,4333.7,4333.6,5.14212567]
[1760085834230,0.0012,4333.7,4333.6,9.66167989]
[1760085834812,0.0012,4333.7,4333.6,9.30067989]
[1760085835017,0.0012,4333.7,4333.6,5.14212567]
[1760085835383,0.0004,4333.7,4333.6,0.91457537]
[1760085835880,0.0004,4333.7,4333.6,0.001]
[1760085837805,0.4342,4333.7,4333.6,0.001]
[1760085839307,0.46304371,4333.7,4333.6,0.001]
[1760085839503,2.74169705,4333.7,4333.6,0.001]
[1760085839702,3.40414076,4333.7,4333.6,0.001]
[1760085841592,5.32414076,4333.7,4333.6,0.001]
[1760085841827,5.79232213,4333.7,4333.6,0.001]
[1760085844397,0.0004,4333.7,4333.6,0.001]
[1760085844603,0.4342,4333.7,4333.6,0.001]
[1760085845136,0.0004,4333.7,4333.6,0.001]
[1760085847937,0.0004,4333.7,4333.6,0.64914531]
[1760085849036,0.0004,4333.7,4333.6,2.95669561]
[1760085849339,0.0004,4333.7,4333.6,0.64914531]
[1760085849634,0.0004,4333.7,4333.6,0.66335814]
[1760085850141,0.002,4334.6,4333.6,8.98046658]
[1760085850440,0.002,4334.6,4334.5,8.51072539]
[1760085850802,0.002,4334.6,4333.9,2.30739057]
[1760085851030,0.002,4334.6,4334.3,2.30713184]
[1760085851228,0.002,4334.6,4334.5,0.09245359]
[1760085852835,0.002,4334.6,4334.5,2.39952476]
[1760085853036,0.002,4334.6,4334.5,3.298558]
[1760085853335,0.002,4334.6,4334.5,3.31275885]
[1760085854431,0.002,4334.6,4334.5,3.298558]
[1760085856526,0.002,4334.6,4334.5,0.99148683]
[1760085857466,0.0012,4334.6,4334.5,3.298558]
[1760085858257,0.0012,4334.6,4334.5,2.39952476]
[1760085859091,0.0012,4334.6,4334.5,0.09245359]
[1760085859286,0.435,4334.6,4334.1,0.1152]
[1760085859488,0.4338,4334.5,4334.1,0.1152]
[1760085859692,0.4338,4334.5,4334.1,2.96505223]
[1760085859895,0.4338,4334.5,4334.1,0.65777542]
[1760085860212,0.549,4334.4,4333.8,2.30743173]
[1760085860717,0.4338,4334.3,4333.6,0.1162]
[1760085860924,0.1152,4334.0,4333.8,0.4338]
[1760085861122,0.4338,4333.9,4333.8,0.4338]
[1760085861334,0.1152,4333.7,4333.6,0.001]
[1760085861998,0.1152,4333.7,4333.6,2.3085503]
[1760085862214,0.1152,4333.7,4333.6,2.77159207]
[1760085862540,0.1152,4334.1,4334.0,2.30733509]
[1760085863526,0.1152,4334.1,4334.0,2.30733733]
[1760085863930,0.002,4334.7,4334.2,2.30719776]
[1760085864111,0.1152,4334.3,4334.2,2.30719776]
[1760085864304,0.002,4334.7,4334.4,2.30711077]
[1760085864505,0.002,4334.7,4334.5,0.01420135]
[1760085864506,0.1164,4334.6,4334.5,0.01420135]
[1760085864939,0.1164,4334.6,4334.5,2.32127252]